bitfinex/quotes_BTCUSD_20220105
["timestamp","ask_amount","ask_price","bid_price","bid_amount"]
[1641419689171,0.369479,43719.0,43718.0,6.935e-05]
[1641419690173,0.0001,43720.0,43718.0,6.935e-05]
[1641419691380,0.369479,43719.0,43718.0,6.935e-05]
[1641419691572,0.0001,43720.0,43718.0,6.935e-05]
[1641419692426,0.0001,43720.0,43719.0,1.639479]
[1641419692624,0.0001,43720.0,43719.0,0.67378511]
[1641419693024,0.0001,43720.0,43719.0,0.87215408]
[1641419693224,0.0001,43720.0,43719.0,1.25314602]
[1641419693625,0.0001,43720.0,43719.0,1.37014602]
[1641419693825,0.0001,43720.0,43719.0,2.50014602]
[1641419694227,0.0001,43720.0,43719.0,2.57168251]
[1641419694824,0.0001,43720.0,43719.0,2.53682169]
[1641419695023,0.0001,43720.0,43719.0,2.52720525]
[1641419695325,0.0001,43720.0,43719.0,1.3793531]
[1641419695525,0.0001,43720.0,43719.0,1.31463094]
[1641419695769,0.0001,43720.0,43719.0,2.37950776]
[1641419695970,0.0001,43720.0,43719.0,1.13263887]
[1641419696172,0.0001,43720.0,43719.0,1.18263887]
[1641419696770,0.0001,43720.0,43719.0,2.04655567]
[1641419696974,0.0001,43720.0,43719.0,2.02955567]
[1641419697171,0.00911183,43728.0,43721.0,0.2]
[1641419697374,0.00911183,43728.0,43725.0,0.057172]
[1641419697574,0.00911183,43728.0,43727.0,1.28848769]
[1641419697876,0.00911183,43728.0,43727.0,0.77311069]
[1641419698074,0.00911183,43728.0,43727.0,0.49567982]
[1641419698274,0.0001,43730.0,43727.0,0.96719925]
[1641419698475,0.0001,43730.0,43728.0,0.08877]
[1641419698674,0.0001,43730.0,43728.0,0.14593945]
[1641419698881,0.0001,43730.0,43729.0,2.304618]
[1641419699081,0.0001,43730.0,43729.0,2.90269959]
[1641419699278,0.0001,43730.0,43729.0,0.68269959]
[1641419699533,0.00861024,43736.0,43733.0,0.057162]
[1641419699726,0.00861024,43736.0,43734.0,0.077294]
[1641419699925,0.00861024,43736.0,43734.0,0.0457]
[1641419700225,0.42,43743.0,43734.0,0.0457]
[1641419700226,0.42,43743.0,43734.0,0.99162717]
[1641419700426,0.42,43743.0,43737.0,0.32619797]
[1641419700725,0.42,43743.0,43737.0,0.30983707]
[1641419700925,0.42,43743.0,43734.0,0.99162717]
[1641419701224,0.42,43743.0,43734.0,0.97368269]
[1641419701631,0.42,43743.0,43735.0,0.11460133]
[1641419701824,0.42,43743.0,43737.0,0.057161]
[1641419702224,0.42,43743.0,43737.0,0.03916901]
[1641419702527,0.42,43743.0,43734.0,0.006]
[1641419702528,0.00122794,43741.0,43734.0,0.006]
[1641419702738,0.369433,43739.0,43734.0,0.006]
[1641419702926,0.476609,43739.0,43723.0,0.00123925]
[1641419703125,0.05718301,43737.0,43723.0,0.00123925]
[1641419703376,0.58437647,43731.0,43723.0,0.00123925]
[1641419703675,0.58437647,43731.0,43729.0,0.00212064]
[1641419704874,0.58437647,43731.0,43729.0,0.00012064]
[1641419705675,0.58437647,43731.0,43729.0,0.00112064]
[1641419705877,2.589433,43730.0,43729.0,0.00112064]
[1641419706675,2.84118622,43730.0,43729.0,0.00112064]
[1641419706884,2.589433,43730.0,43729.0,0.00012064]
[1641419707325,2.58784435,43730.0,43729.0,0.00012064]
[1641419707825,2.60184435,43730.0,43729.0,0.00012064]
[1641419708027,2.60184435,43730.0,43717.0,0.01352447]
[1641419708226,0.057192,43725.0,43717.0,0.01352447]
[1641419708425,0.057196,43726.0,43717.0,0.01352447]
[1641419709027,0.052196,43726.0,43717.0,0.01352447]
[1641419709231,0.057193,43728.0,43717.0,0.01352447]
[1641419709626,0.039,43726.0,43718.0,0.29806988]
[1641419709828,0.039,43726.0,43718.0,0.29932925]
[1641419710428,0.05537828,43725.0,43718.0,0.29932925]
[1641419710628,0.27508706,43725.0,43718.0,0.00125937]
[1641419710876,0.27572114,43725.0,43718.0,0.00125937]
[1641419711073,0.51818993,43724.0,43718.0,0.00125937]
[1641419711374,0.57538393,43724.0,43718.0,0.00125937]
[1641419711575,0.63538393,43724.0,43718.0,0.00225937]
[1641419712175,0.117194,43724.0,43718.0,0.00225937]
[1641419713079,0.00120003,43722.0,43718.0,0.00225937]
[1641419713276,0.369447,43721.0,43718.0,0.00225937]
[1641419713478,0.62106396,43721.0,43718.0,0.00225937]
[1641419713675,2.34069065,43719.0,43718.0,0.00125937]
[1641419714377,2.39069065,43719.0,43718.0,0.00125937]
[1641419714637,2.34069065,43719.0,43718.0,0.00125937]
[1641419715032,0.37069065,43719.0,43718.0,0.00125937]
[1641419715529,0.87069065,43719.0,43718.0,0.00125937]
[1641419715729,0.88469065,43719.0,43718.0,0.00125937]
[1641419716129,0.38469065,43719.0,43718.0,0.00125937]
[1641419716529,1.37469065,43719.0,43718.0,0.00125937]
[1641419716730,1.37263507,43719.0,43718.0,0.00125937]
[1641419716930,1.35863507,43719.0,43718.0,0.00125937]
[1641419717135,1.46583907,43719.0,43718.0,0.00125937]
[1641419717330,1.41583907,43719.0,43718.0,0.00125937]
[1641419717530,2.07583907,43719.0,43718.0,0.00125937]
[1641419717733,1.57708892,43719.0,43718.0,5.937e-05]
[1641419718133,1.47708892,43719.0,43718.0,5.937e-05]
[1641419718379,1.62708892,43719.0,43718.0,5.937e-05]
[1641419718578,1.72708892,43719.0,43718.0,5.937e-05]
[1641419718779,2.22,43718.0,43712.0,8.424e-05]
[1641419718983,2.22,43718.0,43702.0,0.34560966]
[1641419718984,0.62904715,43709.0,43702.0,0.34560966]
[1641419719179,0.62904715,43709.0,43700.0,0.0113]
[1641419719180,0.369452,43708.0,43700.0,0.0113]
[1641419719380,0.24617164,43712.0,43700.0,0.0113]
[1641419719579,0.002,43708.0,43700.0,0.0173]
[1641419720180,0.173658,43708.0,43700.0,0.0173]
[1641419720380,0.002,43708.0,43700.0,0.0173]
[1641419720980,0.6380953,43710.0,43700.0,0.0113]
[1641419721181,0.69531277,43710.0,43700.0,0.0113]
[1641419721382,0.42667,43709.0,43700.0,0.0113]
[1641419721784,0.22144318,43708.0,43700.0,0.0113]
[1641419722046,0.369452,43707.0,43700.0,0.0113]
[1641419722239,0.05722201,43706.0,43700.0,0.0113]
[1641419722444,0.62041406,43705.0,43700.0,0.0113]
[1641419722640,0.00126756,43701.0,43700.0,0.0113]
[1641419722840,2.59071956,43701.0,43700.0,0.0001]
[1641419723038,3.15871735,43701.0,43700.0,0.0001]
[1641419723237,3.20871735,43701.0,43700.0,0.0001]
[1641419723437,3.20871735,43701.0,43690.0,0.00022]
[1641419723438,3.40441735,43701.0,43690.0,0.00022]
[1641419723639,0.00128067,43693.0,43671.0,0.00166524]
[1641419723840,0.369452,43692.0,43677.0,0.00165593]
[1641419724039,0.369452,43692.0,43677.0,0.00044]
[1641419724040,0.419452,43692.0,43677.0,0.00044]
[1641419724438,0.65461444,43684.0,43677.0,0.00044]
[1641419724640,0.05845718,43682.0,43677.0,0.00044]
[1641419724838,0.369452,43681.0,43677.0,0.00044]
[1641419725238,2.31589805,43680.0,43677.0,0.00014]
[1641419725438,0.42671103,43679.0,43677.0,0.00014]
[1641419725639,2.22,43678.0,43677.0,0.00014]
[1641419725879,2.589452,43678.0,43677.0,0.00014]
[1641419726081,2.589452,43678.0,43675.0,0.00014]
[1641419726082,2.22,43676.0,43675.0,0.00014]
[1641419726281,2.589452,43676.0,43675.0,0.00014]
[1641419726881,2.22011,43675.0,43671.0,0.00044]
[1641419727081,2.22011,43675.0,43666.0,0.00022]
[1641419727082,2.21981719,43673.0,43666.0,0.00022]
[1641419727280,0.00128786,43671.0,43666.0,0.00022]
[1641419727483,0.99,43665.0,43662.0,0.00044]
[1641419727788,1.07,43662.0,43652.0,0.00044]
[1641419728081,0.369452,43661.0,43652.0,0.00044]
[1641419728282,0.057287,43664.0,43652.0,0.00164471]
[1641419728681,0.114545,43670.0,43652.0,0.00164471]
[1641419728881,1.682344,43675.0,43657.0,0.00155086]
[1641419728882,0.9501,43674.0,43657.0,0.00155086]
[1641419729081,0.50533259,43670.0,43666.0,0.36704554]
[1641419729281,0.0012551,43676.0,43666.0,0.36704554]
[1641419729540,0.057261,43675.0,43666.0,0.36704554]
[1641419729735,0.015,43670.0,43666.0,0.36704554]
[1641419729936,0.015,43670.0,43667.0,0.118094]
[1641419730139,0.015,43670.0,43666.0,0.36772716]
[1641419730442,0.015,43670.0,43666.0,0.00068162]
[1641419730634,0.072268,43670.0,43666.0,0.00068162]
[1641419731136,0.57380348,43675.0,43666.0,0.00068162]
[1641419731335,0.57380348,43675.0,43667.0,0.36200008]
[1641419731736,0.057264,43672.0,43667.0,0.36200008]
[1641419732135,0.057271,43671.0,43666.0,0.00068162]
[1641419732338,0.369452,43670.0,43666.0,0.00068162]
[1641419732940,0.419452,43670.0,43666.0,0.00068162]
[1641419733380,0.49042845,43667.0,43666.0,0.00068162]
[1641419733581,0.85988045,43667.0,43666.0,0.00068162]
[1641419733785,2.22,43665.0,43659.0,0.00030486]
[1641419733980,0.426736,43664.0,43659.0,3.486e-05]
[1641419734181,0.23814263,43663.0,43659.0,3.486e-05]
[1641419734383,0.369452,43662.0,43659.0,3.486e-05]
[1641419734583,2.10548707,43660.0,43659.0,3.486e-05]
[1641419734781,2.47493907,43660.0,43659.0,3.486e-05]
[1641419735083,2.52493907,43660.0,43659.0,3.486e-05]
[1641419735282,2.52493907,43660.0,43658.0,0.00122]
[1641419735491,3.44840074,43659.0,43645.0,0.00033]
[1641419735682,0.057293,43653.0,43645.0,0.00033]
[1641419735883,0.22901527,43658.0,43647.0,0.55255236]
[1641419736882,0.22901527,43658.0,43647.0,0.84514223]
[1641419736883,0.05720814,43655.0,43647.0,0.84514223]
[1641419737128,0.05720814,43655.0,43640.0,0.00859159]
[1641419737129,0.2289975,43654.0,43640.0,0.00859159]
[1641419737328,0.23313712,43654.0,43640.0,0.00986798]
[1641419737929,0.057294,43651.0,43640.0,0.00859159]
[1641419738133,0.48609674,43650.0,43639.0,0.54686511]
[1641419738429,0.35909574,43652.0,43640.0,0.118187]
[1641419738430,0.534594,43652.0,43640.0,0.118187]
[1641419739230,0.59189,43652.0,43640.0,0.118187]
[1641419739629,0.59392696,43648.0,43639.0,0.6405667]
[1641419739827,0.540594,43652.0,43640.0,0.118192]
[1641419740232,0.057298,43647.0,43640.0,0.118192]
[1641419740429,0.114602,43648.0,43640.0,0.118192]
[1641419740633,0.114602,43648.0,43638.0,0.0307011]
[1641419740904,0.00122699,43645.0,43638.0,0.0307011]
[1641419741102,0.426758,43644.0,43641.0,0.00101124]
[1641419741302,0.00121599,43642.0,43641.0,0.00101124]
[1641419741504,2.64797673,43642.0,43641.0,0.00101124]
[1641419741700,3.31216568,43642.0,43641.0,0.00101124]
[1641419741902,3.31216568,43642.0,43637.0,0.00011]
[1641419741903,1.67,43641.0,43637.0,0.00011]
[1641419742101,1.67,43641.0,43628.0,0.00022]
[1641419742102,0.369452,43640.0,43628.0,0.00022]
[1641419742402,0.684631,43638.0,43628.0,0.00022]
[1641419742601,2.20731676,43636.0,43630.0,0.00964741]
[1641419742803,0.369452,43635.0,43630.0,0.66177553]
[1641419743103,0.114631,43638.0,43630.0,0.66177553]
[1641419743306,1.31396494,43642.0,43630.0,0.66177553]
[1641419743502,0.369452,43641.0,43630.0,0.66177553]
[1641419743701,0.018,43638.0,43630.0,0.66177553]
[1641419743903,0.018,43638.0,43636.0,0.43071959]
[1641419744108,0.018,43638.0,43637.0,2.46137397]
[1641419744304,0.018,43638.0,43637.0,2.41039254]
[1641419744534,0.018,43638.0,43637.0,2.51039254]
[1641419744730,0.9432,43656.0,43649.0,0.61462751]
[1641419745131,0.39129759,43659.0,43648.0,0.25016865]
[1641419745132,0.00129759,43659.0,43648.0,0.25016865]
[1641419745328,0.369452,43658.0,43643.0,0.31349308]
[1641419745528,0.00129759,43659.0,43643.0,0.31349308]
[1641419745729,0.00129759,43659.0,43648.0,0.003]
[1641419745932,0.00129759,43659.0,43651.0,0.2478695]
[1641419746129,0.369452,43658.0,43648.0,0.003]
[1641419746330,0.00129759,43659.0,43648.0,0.003]
[1641419746635,0.2835,43664.0,43661.0,0.47923278]
[1641419746830,0.99377413,43669.0,43661.0,0.43426838]
[1641419747029,0.00127413,43669.0,43661.0,0.43426838]
[1641419747229,5.97567842,43674.0,43661.0,0.81816232]
[1641419747630,6.24514181,43674.0,43661.0,0.53826838]
[1641419747832,0.58074952,43673.0,43661.0,0.004]
[1641419748031,0.2191647,43673.0,43661.0,0.004]
[1641419748283,0.49326824,43667.0,43661.0,0.004]
[1641419748682,0.35127369,43666.0,43661.0,0.004]
[1641419748990,0.35127369,43666.0,43655.0,0.24677399]
[1641419749582,0.35127369,43666.0,43658.0,0.39512151]
[1641419749781,0.35127369,43666.0,43655.0,0.0052752]
[1641419749981,0.47329816,43660.0,43655.0,0.0052752]
[1641419750183,0.47329816,43660.0,43655.0,0.004]
[1641419750988,0.47329816,43660.0,43652.0,0.0457]
[1641419751183,0.26248161,43664.0,43652.0,0.0457]
[1641419751184,0.26248161,43664.0,43652.0,0.102971]
[1641419751385,0.26248161,43664.0,43653.0,0.28488423]
[1641419751784,0.26248161,43664.0,43652.0,0.0527]
[1641419752049,0.26248161,43664.0,43652.0,0.007]
[1641419752247,0.5685321,43660.0,43653.0,0.00072163]
[1641419752645,0.05727441,43669.0,43657.0,0.34705199]
[1641419752851,0.00121673,43672.0,43658.0,0.44666935]
[1641419753047,0.00121673,43672.0,43659.0,0.1]
[1641419753248,5.97567842,43674.0,43660.0,0.2]
[1641419753447,5.97567842,43674.0,43660.0,0.25]
[1641419753652,5.97567842,43674.0,43667.0,0.35316821]
[1641419754248,5.97567842,43674.0,43667.0,0.45316821]
[1641419754448,5.97567842,43674.0,43662.0,0.50694422]
[1641419754650,0.22921873,43673.0,43662.0,0.2]
[1641419754851,0.22921873,43673.0,43662.0,0.25]
[1641419755050,0.22921873,43673.0,43662.0,0.20011012]
[1641419755350,2.0488,43678.0,43662.0,0.20011012]
[1641419755551,2.0488,43678.0,43670.0,0.35736891]
[1641419755787,0.0510902,43691.0,43670.0,0.35736891]
[1641419755788,0.7611,43684.0,43670.0,0.35736891]
[1641419755982,0.35744875,43686.0,43670.0,0.35736891]
[1641419755983,0.3002,43686.0,43670.0,0.35736891]
[1641419756183,0.3002,43686.0,43676.0,0.6324979]
[1641419756379,0.50293162,43687.0,43676.0,0.6324979]
[1641419756580,0.50293162,43687.0,43678.0,0.34898085]
[1641419757180,0.00129834,43689.0,43678.0,0.34898085]
[1641419757480,0.05724228,43691.0,43678.0,0.34898085]
[1641419757681,0.05724228,43691.0,43678.0,0.35098085]
[1641419757884,0.05724228,43691.0,43678.0,0.55098085]
[1641419758183,1.1644,43692.0,43685.0,0.51146993]
[1641419758383,0.36763857,43693.0,43682.0,0.01568]
[1641419758580,0.31040172,43693.0,43682.0,0.01568]
[1641419758980,0.31040172,43693.0,43682.0,0.32860319]
[1641419759182,0.31040172,43693.0,43682.0,0.31292319]
[1641419759383,0.54996439,43689.0,43682.0,0.31292319]
[1641419759628,0.54996439,43689.0,43682.0,0.31792319]
[1641419759829,0.54996439,43689.0,43682.0,0.005]
[1641419760430,0.52496439,43689.0,43682.0,0.005]
[1641419760830,0.52496439,43689.0,43679.0,0.057237]
[1641419761030,0.52496439,43689.0,43681.0,0.28336075]
[1641419761631,0.52496439,43689.0,43681.0,0.28836075]
[1641419762130,0.58060978,43682.0,43681.0,0.005]
[1641419762735,1.17967796,43682.0,43681.0,0.005]
[1641419762931,1.17967796,43682.0,43679.0,0.00126047]
[1641419763131,0.369452,43681.0,43679.0,0.00126047]
[1641419763376,1.60505208,43680.0,43679.0,0.00126047]
[1641419763577,1.97450408,43680.0,43679.0,0.00126047]
[1641419764880,1.9757483,43680.0,43679.0,0.00126047]
[1641419765180,2.0257483,43680.0,43679.0,0.00126047]
[1641419765778,2.06,43679.0,43665.0,0.01342378]
[1641419765980,0.05727051,43669.0,43665.0,0.01342378]
[1641419766179,0.369452,43668.0,43662.0,0.00011012]
[1641419766383,0.59473951,43667.0,43662.0,0.00011012]
[1641419767739,0.60273951,43667.0,43662.0,0.00311012]
[1641419768139,0.008,43667.0,43662.0,0.00311012]
[1641419769037,0.11453896,43670.0,43662.0,0.00011012]
[1641419769242,0.62608484,43667.0,43662.0,0.00011012]
[1641419769843,0.05726991,43665.0,43662.0,0.00011012]
[1641419770442,0.62608484,43667.0,43662.0,0.00011012]
[1641419770883,0.05726965,43665.0,43662.0,0.00011012]
[1641419771085,0.0585321,43673.0,43662.0,0.29268757]
[1641419771086,0.0012651,43673.0,43662.0,0.29268757]
[1641419771290,0.2822,43677.0,43662.0,0.00011012]
[1641419771482,0.23038218,43676.0,43662.0,0.00011012]
[1641419771682,0.026,43673.0,43662.0,0.00611012]
[1641419771885,0.026,43673.0,43664.0,0.57315454]
[1641419772082,0.026,43673.0,43668.0,0.34194857]
[1641419772983,0.05725755,43674.0,43667.0,0.26724274]
[1641419773181,0.5483506,43673.0,43665.0,0.29918893]
[1641419773381,0.5483506,43673.0,43663.0,0.00128935]
[1641419773781,0.5763506,43673.0,43665.0,0.004]
[1641419774182,0.0572606,43670.0,43665.0,0.29667807]
[1641419774634,0.0572606,43670.0,43665.0,0.004]
[1641419774938,0.2189747,43669.0,43662.0,0.00011012]
[1641419775234,0.05726846,43667.0,43662.0,0.00011012]
[1641419775836,1.81605963,43663.0,43662.0,0.00077733]
[1641419776835,1.23,43663.0,43662.0,0.00077733]
[1641419777839,2.19239837,43663.0,43662.0,0.00077733]
[1641419778286,2.21861221,43663.0,43662.0,0.00077733]
[1641419778479,1.26921384,43663.0,43662.0,0.00077733]
[1641419778880,1.25621384,43663.0,43662.0,0.00077733]
[1641419779686,1.26721384,43663.0,43662.0,0.00077733]
[1641419780885,1.25621384,43663.0,43662.0,0.00077733]
[1641419781685,1.26721384,43663.0,43662.0,0.00077733]
[1641419782732,1.93721384,43663.0,43662.0,0.00077733]
[1641419782932,1.92621384,43663.0,43662.0,0.00077733]
[1641419783532,2.29566584,43663.0,43662.0,0.00077733]
[1641419783731,2.61966584,43663.0,43662.0,0.00077733]
[1641419783933,0.04021384,43663.0,43662.0,0.00077733]
[1641419784833,0.84021384,43663.0,43662.0,0.00077733]
[1641419785035,0.02621384,43663.0,43662.0,0.00077733]
[1641419785632,0.05727636,43661.0,43652.0,0.39482874]
[1641419785884,0.11455272,43662.0,43652.0,0.39482874]
[1641419786682,0.11455272,43662.0,43654.0,0.86903117]
[1641419786683,0.05727449,43657.0,43654.0,0.86903117]
[1641419786885,0.05727449,43657.0,43655.0,0.118126]
[1641419787083,0.11455272,43662.0,43655.0,0.118126]
[1641419787284,0.11455272,43662.0,43654.0,0.86903117]
[1641419787483,0.02621384,43663.0,43654.0,0.86903117]
[1641419787687,0.0572703,43659.0,43655.0,0.007]
[1641419787884,0.0572703,43659.0,43656.0,0.118128]
[1641419788785,0.05727674,43657.0,43655.0,0.007]
[1641419789087,0.0572703,43659.0,43653.0,0.00055402]
[1641419789550,1.91427047,43654.0,43653.0,0.00055402]
[1641419789747,3.09372247,43654.0,43653.0,0.01455402]
[1641419790347,3.38428327,43654.0,43653.0,0.01455402]
[1641419790644,3.44157127,43654.0,43653.0,0.01455402]
[1641419790842,3.44157127,43654.0,43653.0,0.00055402]
[1641419791645,3.44957127,43654.0,43653.0,0.00055402]
[1641419792644,2.64474,43654.0,43653.0,4.02e-06]
[1641419792846,0.057302,43647.0,43639.0,0.01235539]
[1641419793051,0.057302,43647.0,43639.0,0.01224539]
[1641419793052,0.16690889,43644.0,43639.0,0.01224539]
[1641419793286,0.60138599,43643.0,43639.0,0.01224539]
[1641419793679,1.5457861,43643.0,43639.0,0.01224539]
[1641419794279,0.11461327,43641.0,43637.0,0.00044]
[1641419794482,0.17192027,43641.0,43637.0,0.00044]
[1641419794881,0.2191797,43640.0,43637.0,0.00044]
[1641419795382,0.22922827,43641.0,43637.0,0.00044]
[1641419795584,0.057308,43640.0,43637.0,0.00044]
[1641419795781,0.067308,43640.0,43637.0,0.00044]
[1641419796879,0.057308,43640.0,43637.0,0.00044]
[1641419797328,1.16461096,43639.0,43635.0,0.0001]
[1641419797530,0.057308,43638.0,43635.0,0.0001]
[1641419797928,0.057308,43638.0,43634.0,0.00022]
[1641419798134,0.369452,43637.0,43634.0,0.00011]
[1641419798329,0.42676147,43637.0,43634.0,0.00011]
[1641419798530,0.11462376,43636.0,43634.0,0.00011]
[1641419798730,0.17193576,43636.0,43634.0,0.00011]
[1641419799730,0.7882527,43636.0,43634.0,0.00011]
[1641419800132,1.449452,43635.0,43634.0,0.00011]
[1641419800801,1.449452,43635.0,43632.0,0.00044]
[1641419800802,2.21,43633.0,43629.0,0.00044]
[1641419800988,2.21,43633.0,43625.0,0.00044]
[1641419800989,2.21,43629.0,43625.0,0.00022]
[1641419801186,2.21,43629.0,43621.0,0.00011]
[1641419801187,1.55,43625.0,43621.0,0.00011]
[1641419801386,2.009452,43624.0,43619.0,0.00033]
[1641419801588,1.64,43624.0,43619.0,0.00033]
[1641419801785,0.369452,43623.0,43619.0,0.00033]
[1641419801987,2.94452207,43622.0,43615.0,0.00033]
[1641419802186,2.94452207,43622.0,43614.0,1.87e-06]
[1641419802187,2.73204497,43615.0,43614.0,1.87e-06]
[1641419802387,2.09,43613.0,43610.0,0.00011]
[1641419802586,1.8,43611.0,43608.0,0.00022]
[1641419802790,0.369452,43610.0,43608.0,0.00022]
[1641419802990,1.89124201,43609.0,43606.0,0.00982161]
[1641419803187,1.89124201,43609.0,43606.0,0.00952161]
[1641419803188,0.369452,43608.0,43606.0,0.00952161]
[1641419803588,0.00124201,43609.0,43606.0,0.00952161]
[1641419803790,0.385452,43608.0,43606.0,0.00952161]
[1641419803988,0.435452,43608.0,43606.0,0.00952161]
[1641419804190,0.05735074,43607.0,43606.0,0.00952161]
[1641419804390,2.08680274,43607.0,43606.0,0.00952161]
[1641419804833,0.42680274,43607.0,43606.0,0.00952161]
[1641419805034,0.05735074,43607.0,43606.0,0.00952161]
[1641419805433,0.11469,43616.0,43606.0,0.00952161]
[1641419805434,1.5318,43621.0,43606.0,0.0093788]
[1641419805638,0.05733091,43617.0,43606.0,0.0093788]
[1641419805833,1.72665255,43622.0,43606.0,0.2123788]
[1641419805834,0.011,43607.0,43606.0,0.2123788]
[1641419806042,0.011,43607.0,43606.0,0.78099626]
[1641419806434,0.011,43607.0,43606.0,1.08099626]
[1641419806734,0.011,43607.0,43606.0,2.44099626]
[1641419806934,0.01345261,43613.0,43608.0,0.2]
[1641419807135,0.01345261,43613.0,43612.0,2.35832]
[1641419807335,1.1846,43630.0,43614.0,0.2]
[1641419807538,0.9581,43631.0,43619.0,0.3]
[1641419807736,0.45734,43637.0,43619.0,0.3]
[1641419807737,1.6617,43642.0,43621.0,0.2]
[1641419807938,1.6617,43642.0,43620.0,0.31780596]
[1641419807939,0.11460855,43642.0,43636.0,0.3358507]
[1641419808139,1.82261232,43646.0,43635.0,0.01963]
[1641419808140,1.24961232,43646.0,43635.0,0.01963]
[1641419808392,1.24961232,43646.0,43636.0,0.47997667]
[1641419808393,0.0573,43643.0,43636.0,0.47997667]
[1641419808597,0.22924704,43653.0,43636.0,0.47997667]
[1641419808598,1.3966,43658.0,43636.0,0.47997667]
[1641419808797,2.575289,43657.0,43636.0,0.55272667]
[1641419808992,2.85818876,43657.0,43641.0,0.31299669]
[1641419809192,0.05728786,43651.0,43645.0,0.40848424]
[1641419809593,1.07626594,43646.0,43645.0,0.40848424]
[1641419809793,0.6,43646.0,43645.0,0.40848424]
[1641419810193,0.007,43651.0,43645.0,0.40848424]
[1641419810593,0.05729232,43649.0,43645.0,0.40848424]
[1641419810996,0.369452,43648.0,43635.0,0.00129885]
[1641419811199,0.21973781,43650.0,43635.0,0.00129885]
[1641419811394,0.38420987,43651.0,43635.0,0.00129885]
[1641419811795,0.0572944,43646.0,43637.0,0.33602181]
[1641419812038,0.0572944,43646.0,43641.0,0.4405475]
[1641419812839,0.057298,43645.0,43641.0,0.4405475]
[1641419813039,0.052298,43645.0,43641.0,0.4405475]
[1641419813238,0.05729822,43644.0,43641.0,0.4405475]
[1641419813440,0.10729822,43644.0,43628.0,0.114594]
[1641419813643,0.16460506,43644.0,43628.0,0.114594]
[1641419813843,0.17960506,43644.0,43641.0,0.002]
[1641419814040,0.58821644,43643.0,43641.0,0.002]
[1641419814242,0.002,43641.0,43625.0,0.114601]
[1641419814442,0.05731809,43630.0,43625.0,0.33709865]
[1641419814839,0.00126147,43636.0,43625.0,0.33709865]
[1641419815040,0.56550237,43632.0,43625.0,0.33709865]
[1641419815237,0.00126147,43636.0,43625.0,0.33709865]
[1641419815438,0.10663198,43637.0,43625.0,0.33709865]
[1641419815641,0.6225,43641.0,43633.0,0.33968975]
[1641419815896,0.20028,43655.0,43640.0,0.3730549]
[1641419816094,0.9133,43651.0,43640.0,0.3730549]
[1641419816292,0.60180201,43651.0,43640.0,0.9829222]
[1641419816496,0.28569654,43650.0,43640.0,0.9829222]
[1641419816791,0.05729383,43646.0,43640.0,1.32651827]
[1641419816994,0.0001,43650.0,43641.0,0.118508]
[1641419817189,0.0001,43650.0,43640.0,0.97551337]
[1641419817588,0.0001,43650.0,43641.0,0.175776]
[1641419817789,0.0101,43650.0,43641.0,0.118488]
[1641419817992,0.06738792,43650.0,43646.0,0.44308048]
[1641419818593,0.06738792,43650.0,43640.0,0.30149607]
[1641419818594,0.369522,43649.0,43640.0,0.30149607]
[1641419818794,0.00122301,43647.0,43640.0,0.003]
[1641419818996,0.369522,43646.0,43629.0,0.0457]
[1641419819192,0.00122301,43647.0,43641.0,0.0005151]
[1641419819193,0.61095496,43643.0,43641.0,0.0005151]
[1641419819390,0.369522,43642.0,43641.0,0.0005151]
[1641419819638,0.47682142,43642.0,43641.0,0.0005151]
[1641419820441,1.92682142,43642.0,43641.0,0.0005151]
[1641419821241,0.47682142,43642.0,43641.0,0.0005151]
[1641419821449,0.93682142,43642.0,43641.0,0.0005151]
[1641419821746,0.49736318,43642.0,43641.0,0.0015151]
[1641419821942,0.12784118,43642.0,43641.0,0.0015151]
[1641419822341,0.62784118,43642.0,43641.0,0.0015151]
[1641419822741,0.12784118,43642.0,43641.0,0.0015151]
[1641419822942,0.12738328,43642.0,43641.0,0.0015151]
[1641419823144,0.10638328,43642.0,43641.0,0.0005151]
[1641419823583,0.05729942,43642.0,43641.0,0.0005151]
[1641419823783,0.07329942,43642.0,43641.0,0.0015151]
[1641419824185,0.07279942,43642.0,43641.0,0.00106759]
[1641419824586,0.016,43642.0,43641.0,0.00106759]
[1641419824787,0.016,43642.0,43641.0,0.11956059]
[1641419824987,0.016,43642.0,43641.0,2.52956059]
[1641419824988,0.01533318,43642.0,43641.0,2.52956059]
[1641419825587,0.9458,43662.0,43641.0,2.72856059]
[1641419825588,0.9606,43659.0,43641.0,2.72856059]
[1641419825789,0.9606,43659.0,43649.0,0.00125987]
[1641419825790,1.01288,43659.0,43649.0,0.00125987]
[1641419825989,0.9556,43659.0,43649.0,0.08837987]
[1641419826190,1.2380523,43664.0,43649.0,0.08837987]
[1641419826491,0.5781,43666.0,43655.0,0.64636344]
[1641419826689,1.67746899,43667.0,43655.0,1.32057282]
[1641419826690,0.58586899,43667.0,43655.0,1.32057282]
[1641419827841,0.0111,43660.0,43655.0,1.32457282]
[1641419828041,0.0111,43660.0,43656.0,0.118438]
[1641419829042,0.0001,43660.0,43656.0,0.118438]
[1641419829241,0.0001,43660.0,43656.0,0.64613898]
[1641419829841,0.0121,43660.0,43657.0,0.00046198]
[1641419830242,0.0121,43660.0,43657.0,1.503e-05]
[1641419830441,0.0121,43660.0,43658.0,0.118422]
[1641419831084,0.0001,43660.0,43658.0,0.118422]
[1641419831684,0.0001,43660.0,43658.0,0.32615657]
[1641419831884,0.0001,43660.0,43658.0,0.33115657]
[1641419832084,0.0001,43660.0,43658.0,0.13115657]
[1641419832485,2.067e-05,43660.0,43658.0,0.01273457]
[1641419833086,2.067e-05,43660.0,43658.0,0.00773457]
[1641419833686,0.01102067,43660.0,43658.0,0.01173457]
[1641419833887,0.01102067,43660.0,43659.0,0.118417]
[1641419834287,0.01056266,43660.0,43659.0,0.64837471]
[1641419834945,0.05726807,43662.0,43659.0,0.64837471]
[1641419835339,0.11454248,43668.0,43659.0,0.64837471]
[1641419835540,0.05726838,43662.0,43659.0,0.64837471]
[1641419835740,0.06826838,43662.0,43659.0,0.65237471]
[1641419835941,0.011,43662.0,43659.0,0.65237471]
[1641419836642,0.011,43662.0,43659.0,0.99338378]
[1641419836843,0.011,43662.0,43659.0,0.65237471]
[1641419837041,0.05726562,43664.0,43659.0,0.64837471]
[1641419837841,0.03521384,43663.0,43659.0,0.65237471]
[1641419838294,0.03521384,43663.0,43661.0,0.32367077]
[1641419838487,0.03521384,43663.0,43662.0,0.44650547]
[1641419839786,0.03921384,43663.0,43662.0,0.00426107]